[Event "Titled Tuesday Blitz March 28 Late 2023"]
[White "Sochacki, Christophe"]
[Black "sebastianmarinp"]
[WhiteFideId "662569"]
[WhiteElo "2474"]
[BlackElo "2298"]
[Result "1-0"]
[Round "03"]
[TimeControl "180+2"]
[Date "2023.03.28"]
[WhiteClock "0:00:31"]
[BlackClock "0:00:07"]

1. h4 {[%clk 0:03:00]}  e5 {[%clk 0:02:58]} 2. h5 {[%clk 0:02:59]}  h6 {[%clk 0:02:57]} 3. a4 {[%clk 0:02:59]}  d5 {[%clk 0:02:57]} 4. a5 {[%clk 0:02:59]}  a6 {[%clk 0:02:58]} 5. e3 {[%clk 0:02:59]}  Nc6 {[%clk 0:02:58]} 6. d4 {[%clk 0:02:59]}  exd4 {[%clk 0:02:54]} 7. exd4 {[%clk 0:02:59]}  Bb4+ {[%clk 0:02:52]} 8. c3 {[%clk 0:02:51]}  Bxa5 {[%clk 0:02:49]} 9. b4 {[%clk 0:02:52]}  Bb6 {[%clk 0:02:48]} 10. Nf3 {[%clk 0:02:31]}  Bg4 {[%clk 0:02:35]} 11. Be2 {[%clk 0:02:25]}  Nf6 {[%clk 0:02:34]} 12. Ne5 {[%clk 0:02:15]}  Nxe5 {[%clk 0:02:19]} 13. dxe5 {[%clk 0:02:13]}  Bxe2 {[%clk 0:02:19]} 14. Qxe2 {[%clk 0:02:13]}  Ne4 {[%clk 0:02:19]} 15. Be3 {[%clk 0:02:02]}  Bxe3 {[%clk 0:02:16]} 16. Qxe3 {[%clk 0:02:03]}  Qg5 {[%clk 0:02:16]} 17. Qxg5 {[%clk 0:01:48]}  Nxg5 {[%clk 0:02:12]} 18. Nd2 {[%clk 0:01:44]}  O-O {[%clk 0:02:08]} 19. f4 {[%clk 0:01:40]}  Ne6 {[%clk 0:02:08]} 20. O-O {[%clk 0:01:38]}  f5 {[%clk 0:01:37]} 21. Nb3 {[%clk 0:01:27]}  Rac8 {[%clk 0:01:20]} 22. Ra5 {[%clk 0:01:20]}  c6 {[%clk 0:01:16]} 23. g3 {[%clk 0:01:19]}  Kh7 {[%clk 0:01:10]} 24. Kf2 {[%clk 0:01:18]}  Rg8 {[%clk 0:01:10]} 25. Rh1 {[%clk 0:01:09]}  g5 {[%clk 0:01:04]} 26. hxg6+ {[%clk 0:01:05]}  Rxg6 {[%clk 0:01:04]} 27. Nd4 {[%clk 0:01:01]}  Nxd4 {[%clk 0:00:59]} 28. cxd4 {[%clk 0:01:02]}  Rcg8 {[%clk 0:00:58]} 29. Ra3 {[%clk 0:01:02]}  Kg7 {[%clk 0:00:52]} 30. Rh5 {[%clk 0:01:01]}  Rf8 {[%clk 0:00:51]} 31. Ra1 {[%clk 0:00:58]}  Re6 {[%clk 0:00:32]} 32. Kf3 {[%clk 0:00:53]}  Rf7 {[%clk 0:00:28]} 33. Rah1 {[%clk 0:00:52]}  Rg6 {[%clk 0:00:25]} 34. R1h4 {[%clk 0:00:48]}  Kh7 {[%clk 0:00:21]} 35. g4 {[%clk 0:00:44]}  fxg4+ {[%clk 0:00:20]} 36. Rxg4 {[%clk 0:00:45]}  Rxg4 {[%clk 0:00:19]} 37. Kxg4 {[%clk 0:00:45]}  Rg7+ {[%clk 0:00:18]} 38. Kf5 {[%clk 0:00:44]}  Rg1 {[%clk 0:00:18]} 39. Ke6 {[%clk 0:00:43]}  Rd1 {[%clk 0:00:14]} 40. f5 {[%clk 0:00:41]}  Rxd4 {[%clk 0:00:14]} 41. Kf7 {[%clk 0:00:38]}  Re4 {[%clk 0:00:11]} 42. e6 {[%clk 0:00:38]}  d4 {[%clk 0:00:12]} 43. e7 {[%clk 0:00:38]}  d3 {[%clk 0:00:07]} 44. e8=Q {[%clk 0:00:31]} 1-0


[Site "https://www.chess.com"]

[Event "Titled Tuesday Blitz March 28 Late 2023"]
[White "Romanchuk, Viktor"]
[Black "Sarkar, Justin"]
[WhiteFideId "14109271"]
[BlackFideId "2010011"]
[WhiteElo "2242"]
[BlackElo "2189"]
[Result "1-0"]
[Round "03"]
[TimeControl "180+2"]
[Date "2023.03.28"]
[WhiteClock "0:01:36"]
[BlackClock "0:00:01"]

1. d4 {[%clk 0:03:00]}  Nf6 {[%clk 0:02:31]} 2. c4 {[%clk 0:03:00]}  e6 {[%clk 0:02:31]} 3. Nc3 {[%clk 0:03:00]}  Bb4 {[%clk 0:02:29]} 4. e3 {[%clk 0:02:59]}  O-O {[%clk 0:02:27]} 5. Ne2 {[%clk 0:02:59]}  d5 {[%clk 0:02:25]} 6. a3 {[%clk 0:03:00]}  Be7 {[%clk 0:02:24]} 7. cxd5 {[%clk 0:02:59]}  exd5 {[%clk 0:02:23]} 8. Nf4 {[%clk 0:02:59]}  c6 {[%clk 0:02:21]} 9. Bd3 {[%clk 0:02:58]}  Nbd7 {[%clk 0:02:01]} 10. O-O {[%clk 0:02:53]}  Re8 {[%clk 0:01:57]} 11. f3 {[%clk 0:02:34]}  Nf8 {[%clk 0:01:54]} 12. b4 {[%clk 0:02:32]}  Ne6 {[%clk 0:01:46]} 13. Nfe2 {[%clk 0:02:31]}  a5 {[%clk 0:01:40]} 14. Rb1 {[%clk 0:02:17]}  axb4 {[%clk 0:01:14]} 15. axb4 {[%clk 0:02:18]}  b6 {[%clk 0:01:11]} 16. Kh1 {[%clk 0:02:02]}  c5 {[%clk 0:00:56]} 17. bxc5 {[%clk 0:01:56]}  bxc5 {[%clk 0:00:56]} 18. Bb5 {[%clk 0:01:51]}  Bd7 {[%clk 0:00:52]} 19. dxc5 {[%clk 0:01:51]}  Bxc5 {[%clk 0:00:44]} 20. Nxd5 {[%clk 0:01:42]}  Nxd5 {[%clk 0:00:10]} 21. Qxd5 {[%clk 0:01:42]}  Bxb5 {[%clk 0:00:07]} 22. Qxd8 {[%clk 0:01:41]}  Nxd8 {[%clk 0:00:07]} 23. Rxb5 {[%clk 0:01:41]}  Bxe3 {[%clk 0:00:06]} 24. Bxe3 {[%clk 0:01:37]}  Rxe3 {[%clk 0:00:01]} 25. Ng3 {[%clk 0:01:37]}  Ne6 {[%clk 0:00:01]} 26. Nf5 {[%clk 0:01:36]} 1-0


[Site "https://www.chess.com"]

[Event "Titled Tuesday Blitz March 28 Late 2023"]
[White "Karamsetty, Jeevan"]
[Black "Muhammad, Shahzeb"]
[WhiteFideId "2025337"]
[BlackFideId "7804806"]
[WhiteElo "2111"]
[BlackElo "2263"]
[Result "1-0"]
[Round "03"]
[TimeControl "180+2"]
[Date "2023.03.28"]
[WhiteClock "0:01:34"]
[BlackClock "0:00:01"]

1. e4 {[%clk 0:03:00]}  d5 {[%clk 0:02:50]} 2. exd5 {[%clk 0:03:00]}  Nf6 {[%clk 0:02:44]} 3. Nc3 {[%clk 0:03:01]}  Nxd5 {[%clk 0:02:44]} 4. Nf3 {[%clk 0:03:00]}  Nxc3 {[%clk 0:02:44]} 5. bxc3 {[%clk 0:03:01]}  g6 {[%clk 0:02:44]} 6. Bc4 {[%clk 0:03:00]}  Bg7 {[%clk 0:02:44]} 7. O-O {[%clk 0:03:00]}  O-O {[%clk 0:02:44]} 8. d4 {[%clk 0:02:57]}  c5 {[%clk 0:02:44]} 9. Re1 {[%clk 0:02:54]}  Nc6 {[%clk 0:02:43]} 10. Ba3 {[%clk 0:02:51]}  Na5 {[%clk 0:01:14]} 11. Qe2 {[%clk 0:02:21]}  Bf6 {[%clk 0:00:32]} 12. Bxc5 {[%clk 0:02:18]}  Qc7 {[%clk 0:00:31]} 13. Bd3 {[%clk 0:02:06]}  b6 {[%clk 0:00:24]} 14. Bxe7 {[%clk 0:02:01]}  Re8 {[%clk 0:00:20]} 15. Bd6 {[%clk 0:01:57]}  Rxe2 {[%clk 0:00:16]} 16. Bxc7 {[%clk 0:01:58]}  Rxe1+ {[%clk 0:00:16]} 17. Rxe1 {[%clk 0:01:59]}  Be6 {[%clk 0:00:15]} 18. Ba6 {[%clk 0:01:42]}  Kg7 {[%clk 0:00:03]} 19. h3 {[%clk 0:01:40]}  h6 {[%clk 0:00:03]} 20. g4 {[%clk 0:01:39]}  Rf8 {[%clk 0:00:01]} 21. Ne5 {[%clk 0:01:37]}  Bxa2 {[%clk 0:00:01]} 22. Nd7 {[%clk 0:01:34]} 1-0


[Site "https://www.chess.com"]

[Event "Titled Tuesday Blitz March 28 Late 2023"]
[White "morozcoma"]
[Black "Sreyas Payyappat"]
[BlackFideId "46674969"]
[WhiteElo "2260"]
[BlackElo "2083"]
[Result "0-1"]
[Round "03"]
[TimeControl "180+2"]
[Date "2023.03.28"]
[WhiteClock "0:00:02"]
[BlackClock "0:00:16"]

1. e4 {[%clk 0:03:00]}  c6 {[%clk 0:02:59]} 2. Nf3 {[%clk 0:03:01]}  d5 {[%clk 0:03:00]} 3. Nc3 {[%clk 0:03:01]}  dxe4 {[%clk 0:03:00]} 4. Nxe4 {[%clk 0:03:02]}  Nf6 {[%clk 0:03:01]} 5. Qe2 {[%clk 0:03:02]}  Nxe4 {[%clk 0:03:00]} 6. Qxe4 {[%clk 0:03:03]}  Nd7 {[%clk 0:03:01]} 7. Bc4 {[%clk 0:03:02]}  Nf6 {[%clk 0:03:02]} 8. Ne5 {[%clk 0:03:02]}  e6 {[%clk 0:03:02]} 9. Qe2 {[%clk 0:03:02]}  b5 {[%clk 0:03:02]} 10. Bb3 {[%clk 0:03:02]}  Qc7 {[%clk 0:02:54]} 11. d4 {[%clk 0:03:01]}  Bd6 {[%clk 0:02:50]} 12. Bf4 {[%clk 0:03:01]}  O-O {[%clk 0:02:49]} 13. O-O {[%clk 0:03:00]}  a5 {[%clk 0:02:47]} 14. c3 {[%clk 0:02:59]}  Bb7 {[%clk 0:02:44]} 15. Bg5 {[%clk 0:02:56]}  Nd7 {[%clk 0:02:28]} 16. f4 {[%clk 0:02:21]}  Nb6 {[%clk 0:02:14]} 17. Bh4 {[%clk 0:02:15]}  a4 {[%clk 0:02:08]} 18. Bc2 {[%clk 0:02:14]}  f6 {[%clk 0:02:08]} 19. Qd3 {[%clk 0:01:27]}  g6 {[%clk 0:01:51]} 20. Ng4 {[%clk 0:01:16]}  Nd5 {[%clk 0:01:48]} 21. g3 {[%clk 0:00:37]}  c5 {[%clk 0:01:30]} 22. Qe2 {[%clk 0:00:28]}  cxd4 {[%clk 0:01:09]} 23. Qxe6+ {[%clk 0:00:26]}  Kg7 {[%clk 0:01:09]} 24. Rfe1 {[%clk 0:00:21]}  dxc3 {[%clk 0:00:43]} 25. Rad1 {[%clk 0:00:19]}  Rae8 {[%clk 0:00:25]} 26. Qxe8 {[%clk 0:00:18]}  Rxe8 {[%clk 0:00:26]} 27. Rxe8 {[%clk 0:00:18]}  Qc5+ {[%clk 0:00:25]} 28. Nf2 {[%clk 0:00:14]}  cxb2 {[%clk 0:00:23]} 29. Be4 {[%clk 0:00:13]}  Nc3 {[%clk 0:00:21]} 30. Rxd6 {[%clk 0:00:02]}  Qxd6 {[%clk 0:00:17]} 31. Bxb7 {[%clk 0:00:03]}  b1=Q+ {[%clk 0:00:16]} 32. Kg2 {[%clk 0:00:03]}  Nd1 {[%clk 0:00:16]} 33. Ne4 {[%clk 0:00:02]}  Ne3+ {[%clk 0:00:16]} 0-1


[Site "https://www.chess.com"]

[Event "Titled Tuesday Blitz March 28 Late 2023"]
[White "Toniutti, Ezio"]
[Black "OKEKE, Isaac Chukwudalu"]
[WhiteFideId "113034"]
[BlackFideId "8508526"]
[WhiteElo "2215"]
[BlackElo "2161"]
[Result "1-0"]
[Round "03"]
[TimeControl "180+2"]
[Date "2023.03.28"]
[WhiteClock "0:02:27"]
[BlackClock "0:00:50"]

1. d4 {[%clk 0:03:00]}  Nf6 {[%clk 0:02:56]} 2. c4 {[%clk 0:03:01]}  g6 {[%clk 0:02:55]} 3. Nc3 {[%clk 0:03:01]}  Bg7 {[%clk 0:02:55]} 4. e4 {[%clk 0:03:02]}  O-O {[%clk 0:02:55]} 5. f4 {[%clk 0:03:03]}  d6 {[%clk 0:02:54]} 6. Nf3 {[%clk 0:03:03]}  c5 {[%clk 0:02:52]} 7. d5 {[%clk 0:03:03]}  b5 {[%clk 0:02:43]} 8. cxb5 {[%clk 0:03:02]}  a6 {[%clk 0:02:44]} 9. a4 {[%clk 0:03:02]}  axb5 {[%clk 0:02:42]} 10. Bxb5 {[%clk 0:03:03]}  Ba6 {[%clk 0:02:40]} 11. Bd2 {[%clk 0:03:03]}  Bxb5 {[%clk 0:02:20]} 12. axb5 {[%clk 0:03:04]}  Rxa1 {[%clk 0:02:20]} 13. Qxa1 {[%clk 0:03:04]}  Qb6 {[%clk 0:02:19]} 14. O-O {[%clk 0:03:01]}  Ng4 {[%clk 0:02:11]} 15. Kh1 {[%clk 0:02:57]}  c4 {[%clk 0:02:02]} 16. Qe1 {[%clk 0:02:57]}  Nd7 {[%clk 0:01:53]} 17. h3 {[%clk 0:02:56]}  Nh6 {[%clk 0:01:38]} 18. Be3 {[%clk 0:02:48]}  Qa5 {[%clk 0:01:34]} 19. Nd4 {[%clk 0:02:45]}  Nc5 {[%clk 0:01:09]} 20. Nc6 {[%clk 0:02:43]}  Qc7 {[%clk 0:01:09]} 21. Bxc5 {[%clk 0:02:42]}  dxc5 {[%clk 0:01:09]} 22. Qe3 {[%clk 0:02:37]}  f5 {[%clk 0:00:58]} 23. e5 {[%clk 0:02:33]}  Nf7 {[%clk 0:00:51]} 24. Qxc5 {[%clk 0:02:32]}  Re8 {[%clk 0:00:51]} 25. b6 {[%clk 0:02:31]}  Qb7 {[%clk 0:00:50]} 26. Ra1 {[%clk 0:02:27]} 1-0


[Site "https://www.chess.com"]

[Event "Titled Tuesday Blitz March 28 Late 2023"]
[White "Torres Dominguez, David"]
[Black "Mortazavi, Ali"]
[WhiteFideId "2220857"]
[BlackFideId "401323"]
[WhiteElo "1999"]
[BlackElo "2339"]
[Result "0-1"]
[Round "03"]
[TimeControl "180+2"]
[Date "2023.03.28"]
[WhiteClock "0:00:07"]
[BlackClock "0:01:15"]

1. e4 {[%clk 0:02:57]}  c6 {[%clk 0:02:59]} 2. Nf3 {[%clk 0:02:57]}  d5 {[%clk 0:03:00]} 3. d3 {[%clk 0:02:57]}  Bg4 {[%clk 0:02:59]} 4. Be2 {[%clk 0:02:57]}  Nd7 {[%clk 0:02:56]} 5. Nfd2 {[%clk 0:02:57]}  Bxe2 {[%clk 0:02:56]} 6. Qxe2 {[%clk 0:02:58]}  e6 {[%clk 0:02:56]} 7. O-O {[%clk 0:02:58]}  Qc7 {[%clk 0:02:53]} 8. Nf3 {[%clk 0:02:57]}  Ne7 {[%clk 0:02:48]} 9. Re1 {[%clk 0:02:56]}  Ng6 {[%clk 0:02:48]} 10. Nc3 {[%clk 0:02:52]}  Be7 {[%clk 0:02:46]} 11. h4 {[%clk 0:02:49]}  Nxh4 {[%clk 0:02:23]} 12. Nxh4 {[%clk 0:02:44]}  Bxh4 {[%clk 0:02:24]} 13. exd5 {[%clk 0:02:43]}  cxd5 {[%clk 0:02:24]} 14. Nxd5 {[%clk 0:02:42]}  Qd6 {[%clk 0:02:24]} 15. Ne3 {[%clk 0:02:20]}  O-O {[%clk 0:02:23]} 16. Nc4 {[%clk 0:02:17]}  Qc7 {[%clk 0:02:21]} 17. Qg4 {[%clk 0:02:10]}  Bf6 {[%clk 0:02:21]} 18. Bg5 {[%clk 0:02:10]}  b5 {[%clk 0:02:18]} 19. Ne3 {[%clk 0:01:44]}  Bxb2 {[%clk 0:02:18]} 20. Rab1 {[%clk 0:01:45]}  Bc3 {[%clk 0:02:18]} 21. Re2 {[%clk 0:01:45]}  a6 {[%clk 0:02:09]} 22. Bf4 {[%clk 0:01:44]}  Be5 {[%clk 0:01:57]} 23. Bxe5 {[%clk 0:01:36]}  Nxe5 {[%clk 0:01:52]} 24. Qg3 {[%clk 0:01:36]}  Rac8 {[%clk 0:01:50]} 25. Ng4 {[%clk 0:01:01]}  Ng6 {[%clk 0:01:45]} 26. Qf3 {[%clk 0:00:53]}  Qf4 {[%clk 0:01:43]} 27. Qh3 {[%clk 0:00:50]}  Qf5 {[%clk 0:01:36]} 28. Rb4 {[%clk 0:00:40]}  Nf4 {[%clk 0:01:24]} 29. Rxf4 {[%clk 0:00:11]}  Qxf4 {[%clk 0:01:23]} 30. Re4 {[%clk 0:00:11]}  Qc1+ {[%clk 0:01:17]} 31. Kh2 {[%clk 0:00:11]}  f5 {[%clk 0:01:15]} 32. Nh6+ {[%clk 0:00:07]}  Qxh6 {[%clk 0:01:15]} 0-1


[Site "https://www.chess.com"]

[Event "Titled Tuesday Blitz March 28 Late 2023"]
[White "ilya2700"]
[Black "Pires, Marcos Vinicius Torsani"]
[BlackFideId "2118939"]
[WhiteElo "2211"]
[BlackElo "2273"]
[Result "1/2-1/2"]
[Round "03"]
[TimeControl "180+2"]
[Date "2023.03.28"]
[WhiteClock "0:00:06"]
[BlackClock "0:00:23"]

1. e4 {[%clk 0:02:58]}  c5 {[%clk 0:02:58]} 2. c4 {[%clk 0:02:59]}  Nc6 {[%clk 0:02:56]} 3. Ne2 {[%clk 0:02:59]}  g6 {[%clk 0:02:56]} 4. d4 {[%clk 0:02:59]}  cxd4 {[%clk 0:02:56]} 5. Nxd4 {[%clk 0:03:00]}  Nf6 {[%clk 0:02:56]} 6. Nc3 {[%clk 0:03:00]}  d6 {[%clk 0:02:57]} 7. Be2 {[%clk 0:02:59]}  Nxd4 {[%clk 0:02:56]} 8. Qxd4 {[%clk 0:02:57]}  Bg7 {[%clk 0:02:57]} 9. O-O {[%clk 0:02:56]}  O-O {[%clk 0:02:57]} 10. Qd3 {[%clk 0:02:46]}  Be6 {[%clk 0:02:55]} 11. Bg5 {[%clk 0:02:39]}  Qa5 {[%clk 0:02:48]} 12. Be3 {[%clk 0:02:17]}  Rfc8 {[%clk 0:02:45]} 13. b3 {[%clk 0:02:14]}  Ng4 {[%clk 0:02:12]} 14. Bxg4 {[%clk 0:02:14]}  Qxc3 {[%clk 0:02:12]} 15. Qxc3 {[%clk 0:02:09]}  Bxc3 {[%clk 0:02:13]} 16. Bxe6 {[%clk 0:02:09]}  fxe6 {[%clk 0:02:03]} 17. Rad1 {[%clk 0:02:03]}  Bf6 {[%clk 0:02:03]} 18. f4 {[%clk 0:01:56]}  a6 {[%clk 0:02:01]} 19. e5 {[%clk 0:01:52]}  dxe5 {[%clk 0:01:58]} 20. fxe5 {[%clk 0:01:52]}  Bxe5 {[%clk 0:01:59]} 21. Rd7 {[%clk 0:01:52]}  Rc7 {[%clk 0:01:55]} 22. Rfd1 {[%clk 0:01:36]}  Rac8 {[%clk 0:01:42]} 23. Bb6 {[%clk 0:01:22]}  Rxd7 {[%clk 0:01:32]} 24. Rxd7 {[%clk 0:01:23]}  Rc6 {[%clk 0:01:33]} 25. c5 {[%clk 0:01:19]}  Kf7 {[%clk 0:01:23]} 26. Rxb7 {[%clk 0:01:16]}  Bd4+ {[%clk 0:01:23]} 27. Kf1 {[%clk 0:01:10]}  Bxc5 {[%clk 0:01:23]} 28. Bxc5 {[%clk 0:01:08]}  Rxc5 {[%clk 0:01:24]} 29. a4 {[%clk 0:01:03]}  e5 {[%clk 0:01:14]} 30. Rb6 {[%clk 0:01:00]}  a5 {[%clk 0:01:07]} 31. Ke2 {[%clk 0:00:53]}  Rc2+ {[%clk 0:01:06]} 32. Kf3 {[%clk 0:00:52]}  e6 {[%clk 0:01:04]} 33. Rb7+ {[%clk 0:00:49]}  Kf6 {[%clk 0:01:04]} 34. Rb5 {[%clk 0:00:45]}  h5 {[%clk 0:00:57]} 35. Rxa5 {[%clk 0:00:42]}  Rc3+ {[%clk 0:00:57]} 36. Kf2 {[%clk 0:00:42]}  Rxb3 {[%clk 0:00:58]} 37. Ra8 {[%clk 0:00:42]}  Ra3 {[%clk 0:00:58]} 38. a5 {[%clk 0:00:42]}  e4 {[%clk 0:00:58]} 39. a6 {[%clk 0:00:41]}  Ke5 {[%clk 0:00:59]} 40. a7 {[%clk 0:00:40]}  Ra2+ {[%clk 0:00:55]} 41. Ke3 {[%clk 0:00:32]}  Ra3+ {[%clk 0:00:55]} 42. Kf2 {[%clk 0:00:31]}  g5 {[%clk 0:00:45]} 43. Rg8 {[%clk 0:00:27]}  Rxa7 {[%clk 0:00:41]} 44. Rxg5+ {[%clk 0:00:27]}  Kf4 {[%clk 0:00:41]} 45. Rxh5 {[%clk 0:00:28]}  Ra2+ {[%clk 0:00:40]} 46. Kf1 {[%clk 0:00:26]}  Ke3 {[%clk 0:00:34]} 47. Rh3+ {[%clk 0:00:23]}  Kd4 {[%clk 0:00:35]} 48. Rb3 {[%clk 0:00:20]}  e3 {[%clk 0:00:28]} 49. Rb4+ {[%clk 0:00:20]}  Kc3 {[%clk 0:00:25]} 50. Rb6 {[%clk 0:00:08]}  e5 {[%clk 0:00:24]} 51. Rd6 {[%clk 0:00:08]}  Rf2+ {[%clk 0:00:22]} 52. Ke1 {[%clk 0:00:03]}  Rxg2 {[%clk 0:00:22]} 53. h4 {[%clk 0:00:03]}  Rh2 {[%clk 0:00:22]} 54. h5 {[%clk 0:00:02]}  Rxh5 {[%clk 0:00:21]} 55. Ke2 {[%clk 0:00:02]}  Rh3 {[%clk 0:00:22]} 56. Rd5 {[%clk 0:00:02]}  Kc4 {[%clk 0:00:20]} 57. Rxe5 {[%clk 0:00:02]}  Kd4 {[%clk 0:00:21]} 58. Re8 {[%clk 0:00:02]}  Rh2+ {[%clk 0:00:21]} 59. Ke1 {[%clk 0:00:02]}  Ra2 {[%clk 0:00:20]} 60. Rd8+ {[%clk 0:00:02]}  Kc3 {[%clk 0:00:19]} 61. Rc8+ {[%clk 0:00:02]}  Kd3 {[%clk 0:00:20]} 62. Rd8+ {[%clk 0:00:03]}  Ke4 {[%clk 0:00:21]} 63. Re8+ {[%clk 0:00:03]}  Kd4 {[%clk 0:00:22]} 64. Rd8+ {[%clk 0:00:04]}  Kc5 {[%clk 0:00:23]} 65. Rc8+ {[%clk 0:00:04]}  Kd6 {[%clk 0:00:22]} 66. Re8 {[%clk 0:00:04]}  Ra3 {[%clk 0:00:22]} 67. Ke2 {[%clk 0:00:04]}  Kd5 {[%clk 0:00:22]} 68. Rxe3 {[%clk 0:00:05]}  Rxe3+ {[%clk 0:00:23]} 69. Kxe3 {[%clk 0:00:06]} 1/2-1/2


[Site "https://www.chess.com"]

[Event "Titled Tuesday Blitz March 28 Late 2023"]
[White "WindWhistler11"]
[Black "ritanovikova"]
[WhiteElo "2452"]
[BlackElo "2209"]
[Result "1-0"]
[Round "03"]
[TimeControl "180+2"]
[Date "2023.03.28"]
[WhiteClock "0:01:11"]
[BlackClock "0:00:23"]

1. Nf3 {[%clk 0:02:53]}  d5 {[%clk 0:03:00]} 2. g3 {[%clk 0:02:52]}  Nf6 {[%clk 0:03:00]} 3. c4 {[%clk 0:02:53]}  dxc4 {[%clk 0:02:59]} 4. Bg2 {[%clk 0:02:52]}  Nc6 {[%clk 0:02:57]} 5. Na3 {[%clk 0:02:52]}  e5 {[%clk 0:02:26]} 6. O-O {[%clk 0:02:44]}  Bxa3 {[%clk 0:02:19]} 7. bxa3 {[%clk 0:02:41]}  O-O {[%clk 0:02:05]} 8. Qa4 {[%clk 0:02:22]}  Be6 {[%clk 0:01:54]} 9. Ng5 {[%clk 0:02:15]}  Bd5 {[%clk 0:01:46]} 10. e4 {[%clk 0:02:11]}  b5 {[%clk 0:01:22]} 11. Qxb5 {[%clk 0:01:55]}  Nd4 {[%clk 0:01:22]} 12. Qa5 {[%clk 0:01:55]}  Bb7 {[%clk 0:00:50]} 13. Qxe5 {[%clk 0:01:49]}  Ne2+ {[%clk 0:00:47]} 14. Kh1 {[%clk 0:01:48]}  Nxc1 {[%clk 0:00:44]} 15. Raxc1 {[%clk 0:01:46]}  Qxd2 {[%clk 0:00:44]} 16. Rxc4 {[%clk 0:01:36]}  Ba6 {[%clk 0:00:38]} 17. Rd4 {[%clk 0:01:29]}  Qb2 {[%clk 0:00:35]} 18. Rfd1 {[%clk 0:01:18]}  Ng4 {[%clk 0:00:34]} 19. Qf5 {[%clk 0:01:13]}  Nxf2+ {[%clk 0:00:34]} 20. Kg1 {[%clk 0:01:13]}  g6 {[%clk 0:00:22]} 21. Qxf2 {[%clk 0:01:12]}  h6 {[%clk 0:00:23]} 22. Qxb2 {[%clk 0:01:11]} 1-0


[Site "https://www.chess.com"]

[Event "Titled Tuesday Blitz March 28 Late 2023"]
[White "Villalba, Marcelo"]
[Black "Lopez Perdomo, Juan David"]
[WhiteFideId "3701859"]
[BlackFideId "4405137"]
[WhiteElo "2191"]
[BlackElo "1965"]
[Result "0-1"]
[Round "03"]
[TimeControl "180+2"]
[Date "2023.03.28"]
[WhiteClock "0:02:09"]
[BlackClock "0:02:18"]

1. e4 {[%clk 0:03:00]}  e6 {[%clk 0:02:55]} 2. d4 {[%clk 0:02:59]}  d5 {[%clk 0:02:56]} 3. Nd2 {[%clk 0:03:00]}  Nf6 {[%clk 0:02:56]} 4. e5 {[%clk 0:03:00]}  Nfd7 {[%clk 0:02:56]} 5. f4 {[%clk 0:02:57]}  c5 {[%clk 0:02:57]} 6. c3 {[%clk 0:02:57]}  cxd4 {[%clk 0:02:53]} 7. cxd4 {[%clk 0:02:57]}  Nc6 {[%clk 0:02:54]} 8. Ndf3 {[%clk 0:02:56]}  Qb6 {[%clk 0:02:53]} 9. g3 {[%clk 0:02:55]}  Bb4+ {[%clk 0:02:53]} 10. Kf2 {[%clk 0:02:55]}  f6 {[%clk 0:02:52]} 11. h4 {[%clk 0:02:52]}  fxe5 {[%clk 0:02:51]} 12. fxe5 {[%clk 0:02:51]}  Ndxe5 {[%clk 0:02:50]} 13. Kg2 {[%clk 0:02:49]}  Ng4 {[%clk 0:02:32]} 14. Bd3 {[%clk 0:02:43]}  e5 {[%clk 0:02:20]} 15. dxe5 {[%clk 0:02:12]}  Qf2+ {[%clk 0:02:17]} 16. Kh3 {[%clk 0:02:10]}  Ne3+ {[%clk 0:02:18]} 17. g4 {[%clk 0:02:09]}  Bxg4# {[%clk 0:02:18]} 0-1


[Site "https://www.chess.com"]

[Event "Titled Tuesday Blitz March 28 Late 2023"]
[White "Mazzilli, Piero"]
[Black "Senft, Sean"]
[WhiteFideId "807087"]
[BlackFideId "2044960"]
[WhiteElo "2175"]
[BlackElo "1989"]
[Result "1-0"]
[Round "03"]
[TimeControl "180+2"]
[Date "2023.03.28"]
[WhiteClock "0:00:33"]
[BlackClock "0:01:04"]

1. e4 {[%clk 0:03:00]}  e6 {[%clk 0:02:59]} 2. Nc3 {[%clk 0:03:00]}  d5 {[%clk 0:02:59]} 3. Nf3 {[%clk 0:03:00]}  dxe4 {[%clk 0:02:59]} 4. Nxe4 {[%clk 0:03:00]}  Be7 {[%clk 0:02:58]} 5. d4 {[%clk 0:03:00]}  Nf6 {[%clk 0:02:59]} 6. Bd3 {[%clk 0:02:59]}  O-O {[%clk 0:02:59]} 7. Qe2 {[%clk 0:02:59]}  Nbd7 {[%clk 0:02:59]} 8. Bg5 {[%clk 0:02:58]}  b6 {[%clk 0:02:59]} 9. Nxf6+ {[%clk 0:02:57]}  Bxf6 {[%clk 0:02:59]} 10. Qe4 {[%clk 0:02:55]}  g6 {[%clk 0:02:23]} 11. Bxf6 {[%clk 0:02:53]}  Nxf6 {[%clk 0:01:57]} 12. Qxa8 {[%clk 0:02:52]}  Qd6 {[%clk 0:01:41]} 13. Qxa7 {[%clk 0:02:46]}  Qc6 {[%clk 0:01:41]} 14. Qa3 {[%clk 0:02:36]}  Bb7 {[%clk 0:01:38]} 15. Qc3 {[%clk 0:02:24]}  Qd5 {[%clk 0:01:37]} 16. Qxc7 {[%clk 0:02:16]}  b5 {[%clk 0:01:26]} 17. Qe5 {[%clk 0:02:12]}  Qd8 {[%clk 0:01:25]} 18. O-O {[%clk 0:01:51]}  Ng4 {[%clk 0:01:19]} 19. Qf4 {[%clk 0:01:42]}  h5 {[%clk 0:01:18]} 20. h3 {[%clk 0:01:37]}  Nf6 {[%clk 0:01:17]} 21. Bxb5 {[%clk 0:01:29]}  Qd5 {[%clk 0:01:14]} 22. c4 {[%clk 0:01:22]}  Qd8 {[%clk 0:01:12]} 23. a4 {[%clk 0:01:17]}  Ne4 {[%clk 0:01:11]} 24. Rfe1 {[%clk 0:01:12]}  f5 {[%clk 0:01:11]} 25. a5 {[%clk 0:01:03]}  g5 {[%clk 0:01:11]} 26. Qe5 {[%clk 0:00:57]}  g4 {[%clk 0:01:12]} 27. Qxe6+ {[%clk 0:00:53]}  Rf7 {[%clk 0:01:10]} 28. Ne5 {[%clk 0:00:37]}  Qh4 {[%clk 0:01:04]} 29. Qxf7+ {[%clk 0:00:33]}  Kh8 {[%clk 0:01:04]} 30. Ng6# {[%clk 0:00:33]} 1-0


[Site "https://www.chess.com"]

[Event "Titled Tuesday Blitz March 28 Late 2023"]
[White "Khatena, Moshe"]
[Black "Stanojevic, Ilija"]
[WhiteFideId "2010461"]
[BlackFideId "959995"]
[WhiteElo "2159"]
[BlackElo "2138"]
[Result "1-0"]
[Round "03"]
[TimeControl "180+2"]
[Date "2023.03.28"]
[WhiteClock "0:01:28"]
[BlackClock "0:01:12"]

1. e4 {[%clk 0:02:56]}  d6 {[%clk 0:02:59]} 2. d4 {[%clk 0:02:55]}  Nf6 {[%clk 0:03:00]} 3. Nc3 {[%clk 0:02:51]}  Nbd7 {[%clk 0:03:00]} 4. d5 {[%clk 0:02:49]}  e5 {[%clk 0:02:58]} 5. dxe6 {[%clk 0:02:49]}  fxe6 {[%clk 0:02:59]} 6. Bc4 {[%clk 0:02:46]}  Nb6 {[%clk 0:02:45]} 7. Bb3 {[%clk 0:02:46]}  d5 {[%clk 0:02:44]} 8. e5 {[%clk 0:02:40]}  Nfd7 {[%clk 0:02:38]} 9. f4 {[%clk 0:02:33]}  Bb4 {[%clk 0:02:22]} 10. Bd2 {[%clk 0:02:30]}  c5 {[%clk 0:02:22]} 11. Nb5 {[%clk 0:02:28]}  Bxd2+ {[%clk 0:02:19]} 12. Qxd2 {[%clk 0:02:29]}  O-O {[%clk 0:02:17]} 13. c3 {[%clk 0:02:18]}  c4 {[%clk 0:01:41]} 14. Bc2 {[%clk 0:02:16]}  Nc5 {[%clk 0:01:41]} 15. Nf3 {[%clk 0:02:01]}  Bd7 {[%clk 0:01:39]} 16. Nbd4 {[%clk 0:01:59]}  Nd3+ {[%clk 0:01:33]} 17. Bxd3 {[%clk 0:01:59]}  cxd3 {[%clk 0:01:34]} 18. Qxd3 {[%clk 0:01:57]}  Nc4 {[%clk 0:01:34]} 19. b3 {[%clk 0:01:43]}  Nb6 {[%clk 0:01:24]} 20. Ng5 {[%clk 0:01:40]}  g6 {[%clk 0:01:18]} 21. Ndxe6 {[%clk 0:01:39]}  Qe7 {[%clk 0:01:15]} 22. Nxf8 {[%clk 0:01:37]}  Rxf8 {[%clk 0:01:15]} 23. O-O {[%clk 0:01:30]}  h6 {[%clk 0:01:12]} 24. Qxg6+ {[%clk 0:01:28]} 1-0


[Site "https://www.chess.com"]